bitfinex-derivatives/quotes_ETHF0:USTF0_20250903
["timestamp","ask_amount","ask_price","bid_price","bid_amount"]
[1756904872259,0.1193,4368.5,4368.4,0.1908]
[1756904872260,0.4247,4368.5,4368.4,0.1908]
[1756904872559,0.96083765,4368.5,4368.4,0.4770938]
[1756904873956,0.4247,4368.5,4368.4,0.4770938]
[1756904874756,0.1193,4369.0,4368.4,0.4770938]
[1756904874953,0.4244,4368.0,4367.9,1.33550175]
[1756904875159,0.6192,4368.0,4367.9,1.62184367]
[1756904875553,0.6192,4368.0,4367.9,42.42184367]
[1756904877462,0.8136,4368.0,4367.9,1.43104367]
[1756904877662,4.8136,4368.0,4367.9,1.14470175]
[1756904878963,0.8136,4368.0,4367.9,1.14470175]
[1756904881166,0.8136,4368.0,4367.9,0.50830175]
[1756904881362,0.3892,4366.9,4366.8,0.4912]
[1756904881563,0.6946,4366.9,4366.8,0.77762821]
[1756904881766,0.1948,4366.9,4366.8,41.78152821]
[1756904882167,0.5002,4366.9,4366.8,41.78152821]
[1756904882362,0.1948,4366.9,4366.8,0.98152821]
[1756904882570,0.119,4367.5,4366.8,0.28642821]
[1756904882763,0.1948,4366.6,4366.5,0.3196]
[1756904882971,0.1948,4366.6,4366.5,0.80985751]
[1756904883172,0.5002,4366.6,4366.5,0.80985751]
[1756904883465,0.119,4367.5,4366.2,40.8]
[1756904883466,0.4244,4366.5,4366.2,40.8]
[1756904883770,0.5002,4366.8,4366.7,0.6951]
[1756904885273,0.1948,4366.8,4366.7,0.6951]
[1756904885765,0.3054,4367.2,4366.7,0.6951]
[1756904886063,0.233,4367.4,4366.5,0.1184]
[1756904886266,0.3054,4367.3,4366.6,0.29]
[1756904886461,0.6946,4366.7,4366.6,0.2012]
[1756904886668,0.119,4367.0,4366.3,0.4912]
[1756904886669,0.3892,4366.4,4366.3,0.4912]
[1756904886867,0.3892,4366.4,4366.3,0.6951]
[1756904887269,0.1948,4366.4,4366.3,0.6951]
[1756904887571,0.3054,4367.1,4366.5,0.1184]
[1756904887773,0.1948,4366.6,4366.5,0.8135]
[1756904887967,0.6946,4366.6,4366.5,0.6951]
[1756904888177,0.6946,4366.6,4366.5,0.2012]
[1756904888365,0.6946,4366.6,4366.2,41.09]
[1756904888366,0.3892,4366.6,4366.2,41.09]
[1756904888667,0.6946,4366.3,4366.2,41.09]
[1756904888871,0.6946,4366.3,4366.2,0.29]
[1756904889069,0.6946,4366.3,4366.2,0.4912]
[1756904889774,0.6946,4366.3,4366.2,0.6951]
[1756904890872,0.6946,4367.0,4366.9,0.2012]
[1756904891076,0.1948,4367.0,4366.9,0.6951]
[1756904891475,0.5002,4367.0,4366.9,0.6951]
[1756904891770,0.8187,4367.0,4366.5,0.1184]
[1756904891966,0.5133,4367.0,4366.5,0.1184]
[1756904892166,0.5133,4367.0,4366.6,0.7245]
[1756904892167,0.2013,4366.7,4366.6,0.7245]
[1756904892365,0.2934,4367.3,4366.6,0.4149]
[1756904892672,0.2013,4366.8,4366.7,0.7245]
[1756904893865,0.2013,4366.8,4366.1,40.8]
[1756904893866,0.7063,4366.8,4366.3,0.3096]
[1756904894065,0.1241,4367.0,4366.6,0.2048]
[1756904894066,0.4129,4366.7,4366.6,0.2048]
[1756904894271,0.7063,4366.7,4366.6,0.5144]
[1756904894469,0.7063,4366.7,4366.6,0.7245]
[1756904894768,0.2013,4366.7,4366.6,0.7245]
[1756904894967,0.2934,4367.1,4366.6,0.7245]
[1756904895171,0.119,4367.5,4366.5,0.1201]
[1756904895172,0.4129,4366.8,4366.7,0.5144]
[1756904895378,0.7063,4366.8,4366.7,0.7245]
[1756904896769,0.7063,4366.8,4366.7,0.2048]
[1756904896971,0.7063,4366.3,4365.0,2.15893016]
[1756904897271,0.7063,4366.3,4365.6,0.3096]
[1756904897577,0.7063,4366.3,4365.7,40.8]
[1756904897769,0.2934,4366.2,4365.7,40.8]
[1756904897977,0.2934,4365.7,4365.4,0.3096]
[1756904898279,0.7063,4365.5,4365.4,0.5144]
[1756904898469,0.7063,4365.5,4365.4,41.3144]
[1756904899681,0.7063,4365.5,4365.4,0.2048]
[1756904899879,0.2934,4365.4,4365.1,0.3096]
[1756904900074,0.2934,4365.9,4365.1,0.4149]
[1756904900270,0.2934,4365.9,4365.2,0.3096]
[1756904902881,0.1241,4366.5,4365.9,0.3096]
[1756904902882,0.4175,4366.5,4365.9,0.3096]
[1756904903081,0.7063,4366.5,4366.4,0.7245]
[1756904903278,0.2934,4367.0,4366.5,0.1201]
[1756904903485,0.2934,4367.7,4367.1,0.3096]
[1756904903783,0.2013,4367.2,4367.1,0.7245]
[1756904903980,0.4947,4367.2,4367.1,0.7245]
[1756904904180,0.7063,4367.2,4367.1,0.7245]
[1756904904381,0.4947,4367.2,4367.1,0.7245]
[1756904904687,0.7063,4367.2,4367.1,0.7245]
[1756904905389,0.7063,4367.2,4366.7,0.3096]
[1756904905587,0.2934,4367.1,4366.5,0.4297]
[1756904908079,0.2013,4366.6,4366.5,0.6345]
[1756904908276,0.2013,4366.6,4366.2,0.3096]
[1756904908277,0.1241,4366.5,4366.2,0.3096]
[1756904908482,0.4175,4366.5,4365.6,0.3096]
[1756904908889,0.1241,4366.5,4365.7,40.8]
[1756904909185,0.2013,4365.8,4365.7,41.1096]
[1756904909385,0.7063,4365.8,4365.7,0.2048]
[1756904909583,0.4129,4365.8,4365.7,0.7245]
[1756904909788,0.2013,4365.8,4365.7,0.7245]
[1756904910289,0.7063,4365.8,4365.7,0.7245]
[1756904910485,0.2013,4365.3,4365.2,0.5144]
[1756904910791,0.2013,4365.3,4365.2,0.7245]
[1756904910983,0.4947,4365.3,4365.2,0.7245]
[1756904911285,0.7063,4365.3,4365.2,0.7245]
[1756904911981,0.4129,4365.3,4365.2,0.7245]
[1756904912183,0.7063,4365.3,4365.2,0.7245]
[1756904912686,0.2013,4365.3,4365.2,0.7245]
[1756904912992,0.6159,4366.2,4366.1,0.2048]
[1756904913290,1.44774028,4366.2,4365.6,0.3096]
[1756904913491,1.44774028,4366.2,4365.6,0.5144]
[1756904913492,0.7063,4365.7,4365.6,0.5144]
[1756904913684,0.7063,4365.7,4365.1,0.3096]
[1756904916091,0.7063,4365.7,4365.6,0.2048]
[1756904916492,0.7063,4365.7,4365.1,0.3096]
[1756904916880,0.9453,4365.7,4365.1,0.3096]
[1756904917080,0.9453,4365.7,4364.7,0.7245]
[1756904917081,0.4947,4364.8,4364.7,0.7245]
[1756904917279,0.7063,4364.8,4364.7,0.7245]
[1756904917789,1.22488252,4366.4,4364.8,0.3096]
[1756904917996,0.83136264,4366.3,4365.2,0.3096]
[1756904918294,1.24426264,4366.2,4366.1,0.2048]
[1756904919795,0.2013,4365.9,4365.8,0.5144]
[1756904920091,0.2013,4365.9,4365.8,0.7245]
[1756904920092,0.4947,4365.9,4365.8,0.7245]
[1756904920490,0.2013,4365.9,4365.8,0.7245]
[1756904922490,0.7137,4366.3,4366.2,0.2039]
[1756904922692,4.03474096,4367.1,4366.2,0.4159]
[1756904922895,0.53814866,4367.0,4366.9,0.7246]
[1756904923198,0.7269,4366.9,4366.8,0.5126]
[1756904923393,0.7269,4366.9,4366.3,0.3087]
[1756904923693,0.7269,4366.9,4366.3,41.1087]
[1756904923892,0.7269,4366.9,4366.8,0.2039]
[1756904924296,0.7269,4366.9,4366.8,0.7246]
[1756904925283,0.2109,4366.9,4366.8,0.7246]
[1756904925490,0.6613,4367.6,4367.5,0.2039]
[1756904925792,0.2109,4367.1,4367.0,0.5393]
[1756904925984,0.7269,4367.1,4367.0,0.7246]
[1756904926491,0.3066,4367.5,4367.0,0.5393]
[1756904926693,0.4479,4367.5,4367.4,0.7246]
[1756904927099,0.237,4367.5,4367.4,0.7246]
[1756904927898,0.5175,4367.8,4367.7,0.5126]
[1756904928094,0.7585,4367.8,4367.7,0.5126]
[1756904928290,0.9679,4367.8,4367.7,0.5126]
[1756904928492,0.9679,4367.8,4367.1,0.3087]
[1756904929600,0.9679,4367.8,4367.0,0.1234]
[1756904929601,0.7269,4367.8,4367.7,0.7246]
[1756904929794,0.9679,4367.8,4367.7,0.7246]
[1756904932199,0.7269,4367.8,4367.7,0.7246]
[1756904932798,0.1238,4368.5,4367.7,0.4159]
[1756904932799,0.3066,4368.2,4367.7,0.4159]
[1756904933002,0.7585,4368.2,4368.1,0.2039]
[1756904933208,0.9679,4368.2,4368.1,0.5126]
[1756904933400,0.3066,4368.5,4368.1,0.7246]
[1756904933602,0.3066,4368.5,4367.5,0.1234]
[1756904933603,0.7585,4368.9,4368.8,0.2039]
[1756904933905,0.7269,4368.9,4368.8,0.5126]
[1756904934104,0.7269,4368.9,4368.8,0.7246]
[1756904934604,0.2109,4368.9,4368.8,0.7246]
[1756904935101,0.3066,4369.9,4368.9,0.3087]
[1756904935306,0.7269,4369.8,4369.7,0.2039]
[1756904935508,0.7269,4369.8,4369.7,0.5126]
[1756904936100,1.34868252,4371.0,4369.8,0.3087]
[1756904936101,0.4304,4370.5,4369.8,0.3087]
[1756904936302,0.7269,4370.4,4370.3,0.2039]
[1756904936502,0.7269,4370.4,4370.3,0.5126]
[1756904937511,0.7269,4370.4,4370.3,0.7246]
[1756904937712,0.2109,4370.4,4370.3,0.7246]
[1756904938209,0.7269,4370.8,4370.7,0.2039]
[1756904938405,0.3066,4370.7,4370.4,0.3087]
[1756904938711,0.2109,4370.5,4370.4,0.7246]
[1756904939299,0.5175,4370.5,4370.4,0.7246]
[1756904939503,0.3066,4370.6,4369.6,40.8]
[1756904939703,0.3066,4369.7,4369.6,40.8]
[1756904939904,0.5175,4370.0,4369.9,0.5126]
[1756904940210,0.5175,4370.0,4369.9,0.7246]
[1756904940405,0.4519,4370.0,4369.9,0.7246]
[1756904940806,0.9679,4370.0,4369.9,0.7246]
[1756904941012,0.7269,4370.0,4369.9,0.7246]
[1756904941913,0.3066,4370.9,4370.0,0.1234]
[1756904942107,0.241,4370.8,4370.1,0.3087]
[1756904942308,0.3066,4370.9,4370.1,0.3087]
[1756904942503,0.4519,4370.8,4370.7,0.7246]
[1756904942711,0.241,4370.8,4370.7,0.7246]
[1756904943215,0.241,4371.0,4370.8,0.3087]
[1756904943412,0.241,4371.0,4370.6,0.3087]
[1756904943806,0.3066,4370.9,4370.5,0.1234]
[1756904944015,0.241,4371.0,4370.5,0.1234]
[1756904944212,0.241,4371.0,4370.6,0.3087]
[1756904944709,0.3066,4370.9,4369.6,0.3087]
[1756904944913,0.241,4370.8,4369.7,0.3087]
[1756904945110,0.241,4370.8,4369.7,0.22881999]
[1756904945312,0.3066,4370.7,4369.8,0.3087]
[1756904947011,0.1238,4371.0,4370.6,0.3087]
[1756904947012,0.3066,4371.0,4370.6,0.3087]
[1756904947218,0.241,4370.9,4370.5,0.1234]
[1756904947518,0.5476,4370.8,4370.6,0.3087]
[1756904947710,0.5476,4370.8,4370.5,0.1234]
[1756904948310,32.986,4371.2,4370.6,0.3087]
[1756904948509,0.241,4371.1,4370.6,0.3087]
[1756904948920,32.986,4371.2,4371.1,0.3087]
[1756904949121,33.227,4371.2,4371.1,0.3087]
[1756904949814,33.227,4371.2,4370.5,0.1234]
[1756904949815,33.5336,4371.2,4370.6,0.3087]
[1756904950613,33.2926,4371.2,4370.6,0.3087]
[1756904950814,0.241,4371.1,4370.6,0.3087]
[1756904951015,0.241,4371.1,4370.5,0.1234]
[1756904951322,0.3066,4371.0,4370.5,0.4321]
[1756904951621,0.1938,4371.0,4370.9,0.2076]
[1756904951815,0.6752,4371.0,4370.9,0.4943]
[1756904952016,0.9162,4371.0,4370.9,0.2076]
[1756904952316,0.9162,4371.0,4370.5,0.1234]
[1756904952317,0.4838,4370.9,4370.8,0.6899]
[1756904952620,0.1938,4370.9,4370.8,0.6899]
[1756904952821,32.986,4371.2,4370.8,0.6899]
[1756904953023,0.241,4371.1,4370.9,0.2867]
[1756904953323,0.241,4371.1,4371.0,0.6899]
[1756904954012,0.9162,4371.1,4371.0,0.2076]
[1756904954215,0.6262,4371.1,4370.5,0.1234]
[1756904954415,0.4838,4371.5,4371.4,0.1956]
[1756904954720,0.9152,4371.5,4371.4,0.6899]
[1756904955317,0.7402,4371.5,4370.8,40.8]
[1756904955524,0.3852,4370.9,4370.8,0.2076]
[1756904955727,0.6752,4370.9,4370.8,0.2076]
[1756904956125,0.6752,4370.9,4370.8,0.4943]
[1756904956318,0.6752,4370.9,4370.0,0.1234]
[1756904956319,0.29,4370.8,4370.0,0.1234]
[1756904956524,0.29,4370.8,4370.2,0.51551]
[1756904956719,34.31368252,4372.5,4370.8,0.2867]
[1756904956926,0.6752,4370.9,4370.5,40.9206]
[1756904957224,0.115,4371.5,4370.5,40.9206]
[1756904957225,0.6752,4370.6,4370.5,41.0867]
[1756904957425,0.6752,4370.6,4370.5,0.4943]
[1756904957619,0.115,4370.5,4370.0,0.4101]
[1756904957824,0.6752,4370.1,4370.0,0.4943]
[1756904958321,0.4814,4370.1,4370.0,0.6899]
[1756904958522,0.3852,4370.9,4370.8,0.6899]
[1756904959119,0.3852,4370.9,4370.0,0.1206]
[1756904959120,0.6752,4370.9,4370.1,0.2867]
[1756904959520,0.3852,4370.2,4370.1,0.2867]
[1756904959720,0.3852,4370.2,4369.6,41.0867]
[1756904959721,0.6752,4370.2,4369.6,41.0867]
[1756904960022,0.115,4371.5,4370.2,0.2867]
[1756904960023,0.13,4371.1,4370.2,0.2867]
[1756904960224,0.8052,4371.1,4371.0,0.2076]
[1756904960619,0.9162,4371.1,4371.0,0.4943]
[1756904961223,0.29,4371.9,4371.6,0.2867]
[1756904961422,0.4838,4372.2,4372.1,0.4032]
[1756904961614,0.4838,4372.2,4372.1,0.6899]
[1756904961820,32.965,4372.5,4372.2,0.2867]
[1756904962025,0.53891822,4372.4,4372.3,0.2867]
[1756904962324,0.29,4373.4,4372.1,0.2867]
[1756904962630,0.241,4373.0,4372.1,0.2867]
[1756904962821,0.53898856,4372.9,4372.1,0.2867]
[1756904963124,0.241,4373.2,4372.3,0.2867]
[1756904963431,0.53897311,4373.1,4372.3,0.2867]
[1756904963724,0.94397311,4373.0,4372.3,0.2867]
[1756904963920,0.53897311,4372.9,4372.3,0.2867]
[1756904964523,0.53897311,4372.9,4372.4,4.89679337]
[1756904964725,0.29,4373.3,4372.5,0.2867]
[1756904964921,0.115,4373.0,4372.5,0.2867]
[1756904965121,0.53899376,4372.9,4372.1,0.2867]
[1756904965321,33.252,4373.8,4372.6,0.2867]
[1756904965531,0.29,4373.6,4372.6,0.2867]
[1756904965830,0.53890761,4373.5,4372.6,0.2867]
[1756904966024,0.29,4373.3,4372.6,0.2867]
[1756904966225,0.29,4373.1,4372.5,0.4073]
[1756904966531,0.29,4373.1,4372.5,0.1206]
[1756904966724,0.29,4373.1,4372.6,0.2867]
[1756904966930,0.115,4373.5,4372.5,0.4073]
[1756904967133,0.77966099,4373.4,4372.5,0.4073]
[1756904967324,0.82866099,4373.3,4372.6,40.8]
[1756904967525,0.53866099,4373.2,4372.6,40.8]
[1756904967725,0.29,4373.3,4372.6,40.8]
[1756904967925,32.962,4373.8,4372.7,0.2867]
[1756904967926,0.53791038,4373.2,4372.7,0.2867]
[1756904968127,1.22488252,4374.2,4373.1,0.2867]
[1756904968334,0.5375677,4374.1,4374.0,0.4073]
[1756904968627,0.115,4375.0,4373.5,0.4073]
[1756904968831,0.53744841,4374.9,4373.5,0.63590999]
[1756904969032,0.82744841,4374.8,4373.6,0.2867]
[1756904969332,0.29,4374.6,4373.6,0.2867]
[1756904969534,0.53744841,4374.5,4373.6,0.2867]
[1756904969729,0.53744841,4374.4,4373.6,0.2867]
[1756904969929,0.29,4374.6,4373.6,0.2867]
[1756904970132,0.53701163,4374.5,4373.6,0.2867]
[1756904970434,0.29,4374.6,4373.6,0.2867]
[1756904970632,0.53667188,4374.5,4373.6,0.2867]
[1756904970833,0.29,4374.6,4373.6,0.2867]
[1756904971030,0.53667261,4374.5,4373.6,0.2867]
[1756904971225,0.29,4374.6,4373.6,0.2867]
[1756904971427,0.5364008,4374.5,4373.6,0.2867]
[1756904971736,0.96445618,4374.4,4373.0,0.1206]
[1756904971929,0.428,4374.4,4373.1,0.2867]
[1756904972129,0.29,4374.2,4373.2,0.2867]
[1756904972325,0.29,4374.0,4373.2,0.51534]
[1756904972532,0.29,4374.0,4373.2,0.2867]
[1756904972731,0.53633649,4373.9,4373.2,0.2867]
[1756904972932,0.29,4373.9,4373.3,40.8]
[1756904973129,0.53634567,4373.8,4373.3,40.8]
[1756904973332,0.115,4374.0,4373.4,0.2867]
[1756904973636,0.29,4373.8,4373.4,0.2867]
[1756904973832,0.29,4373.9,4373.3,41.0867]
[1756904974135,0.29,4373.7,4373.3,40.8]
[1756904974330,0.29,4373.7,4373.4,0.2867]
[1756904974527,0.115,4374.0,4373.4,0.2867]
[1756904974726,0.53610837,4373.9,4373.4,0.2867]
[1756904974924,0.29,4374.2,4373.4,0.2867]
[1756904975127,0.53611047,4374.1,4373.4,0.2867]
[1756904975328,0.53611047,4374.0,4373.4,0.2867]
[1756904975528,0.82611047,4373.9,4373.4,0.2867]
[1756904975728,0.115,4374.0,4373.3,40.8]
[1756904976028,0.82607745,4373.9,4373.3,41.0867]
[1756904976230,0.29,4373.9,4373.3,41.0867]
[1756904976428,0.1938,4373.4,4373.3,41.0867]
[1756904976635,0.4838,4373.4,4373.3,40.8]
[1756904977230,0.4838,4373.4,4373.3,41.0867]
[1756904977423,0.6752,4373.4,4373.3,0.4943]
[1756904979036,0.6752,4373.4,4372.8,0.2867]
[1756904980338,0.6752,4373.4,4370.8,2.286]
[1756904980339,0.29,4372.4,4372.1,0.2867]
[1756904980531,0.3852,4372.2,4372.1,0.6899]
[1756904980734,0.3852,4372.2,4372.1,41.4899]
[1756904980735,0.6752,4372.2,4372.1,41.4899]
[1756904981130,0.29,4372.2,4371.6,0.2867]
[1756904981834,0.53674094,4372.1,4371.6,0.2867]
[1756904982040,0.4309,4372.0,4371.1,0.298]
[1756904982241,0.4309,4372.0,4371.2,40.8]
[1756904982734,0.4309,4372.0,4371.3,0.298]
[1756904983640,0.3099,4372.0,4371.3,0.298]
[1756904983834,0.2088,4372.0,4371.9,0.3976]
[1756904984033,0.2088,4372.0,4371.9,0.6956]
[1756904985340,0.7111,4372.0,4371.9,0.2058]
[1756904985545,0.7111,4371.6,4371.5,0.5038]
[1756904985741,0.7111,4371.6,4371.5,0.6956]
[1756904985935,0.2088,4371.6,4371.5,0.6956]
[1756904986142,0.2088,4371.6,4371.5,0.8114]
[1756904988136,0.3099,4372.4,4371.6,0.298]
[1756904988336,0.74637305,4372.3,4372.2,0.6956]
[1756904988537,0.5499,4372.6,4372.3,0.298]
[1756904988740,0.9511,4372.6,4372.5,0.2058]
[1756904988941,0.9511,4372.6,4372.5,0.5038]
[1756904989136,0.7111,4372.6,4372.5,0.5038]
[1756904989340,0.7111,4372.6,4372.5,0.6956]
[1756904989543,0.4012,4372.6,4372.5,0.6956]
[1756904990735,0.7111,4372.6,4372.0,0.1158]
[1756904990934,0.4012,4372.1,4372.0,0.2058]
[1756904991137,0.7111,4372.1,4372.0,0.2058]
[1756904991337,0.7111,4372.1,4372.0,0.5038]
[1756904991542,0.7111,4372.1,4372.0,0.6956]
[1756904992543,0.7111,4372.1,4371.5,0.4138]
[1756904992740,0.7111,4371.6,4371.2,40.8]
[1756904992940,0.2088,4371.2,4371.1,0.6956]
[1756904993340,0.2088,4371.2,4371.1,41.4956]
[1756904993844,0.3099,4371.9,4371.2,0.298]
[1756904994545,0.7111,4371.9,4371.8,0.2058]
[1756904995047,0.7111,4371.9,4371.8,0.5038]
[1756904995641,0.121,4372.0,4371.1,40.8]
[1756904995642,0.3099,4371.8,4371.2,0.298]
[1756904995841,0.2088,4371.3,4371.2,0.6956]
[1756904996342,0.7111,4371.3,4371.2,0.2058]
[1756904996948,0.4012,4371.3,4370.8,40.8]
[1756904997246,0.7111,4371.0,4370.9,0.2058]
[1756904997448,0.7111,4371.0,4370.9,0.6956]
[1756904998543,0.4012,4370.5,4370.4,0.5038]
[1756904998736,0.7111,4370.5,4370.4,0.6956]
[1756904999341,0.3099,4370.9,4370.4,0.6956]
[1756904999544,0.121,4371.0,4370.5,0.1158]
[1756904999845,0.7111,4370.9,4370.1,40.8]
[1756905000055,0.7111,4370.8,4370.7,0.2058]
[1756905000246,0.7111,4370.8,4370.7,0.5038]
[1756905000549,0.4012,4370.8,4370.7,0.6956]
[1756905000762,0.3099,4371.1,4370.8,0.298]
[1756905000943,0.4012,4371.4,4371.3,0.6956]
[1756905001144,0.3099,4372.4,4371.6,0.298]
[1756905001450,0.9501,4372.0,4371.9,0.2058]
[1756905001743,0.9501,4372.0,4371.6,0.5038]
[1756905001744,0.7111,4371.7,4371.6,0.5038]
[1756905001946,0.7111,4371.7,4371.6,0.2058]
[1756905002346,0.7111,4371.7,4371.3,0.298]
[1756905002546,0.2088,4371.4,4371.3,0.5038]
[1756905002747,0.2088,4371.4,4371.3,0.6956]
[1756905003338,0.3099,4371.8,4371.4,0.298]
[1756905003539,0.5187,4371.8,4371.7,0.2058]
[1756905003754,0.5187,4371.8,4371.7,0.6956]
[1756905003947,0.7111,4371.8,4371.7,0.5038]
[1756905004449,0.7111,4371.8,4371.7,0.2058]
[1756905004946,0.2088,4371.8,4371.7,0.6956]
[1756905005346,0.3099,4372.3,4371.7,0.3976]
[1756905005541,0.7111,4372.3,4372.2,0.2058]
[1756905005743,0.4012,4372.3,4372.2,0.6956]
[1756905006053,33.067,4373.0,4372.6,0.6956]
[1756905006054,0.5187,4372.7,4372.6,0.6956]
[1756905006447,32.946,4373.0,4372.7,0.298]
[1756905006652,32.946,4373.0,4372.9,0.6956]
[1756905006852,0.121,4373.5,4372.6,40.8]
[1756905007147,0.239,4373.6,4373.4,0.3976]
[1756905007348,0.239,4373.6,4373.5,0.6956]
[1756905007545,0.239,4373.6,4373.5,0.8114]
[1756905007952,1.61746521,4375.4,4373.5,0.8114]
[1756905007953,1.22488252,4375.2,4373.6,0.298]
[1756905008148,0.3099,4375.3,4373.5,8.61269193]
[1756905008149,0.53915273,4375.1,4374.5,0.1158]
[1756905008348,0.3099,4375.3,4374.6,0.298]
[1756905011650,0.3063,4375.9,4374.6,0.298]
[1756905011851,0.3063,4375.7,4374.6,0.298]
[1756905012458,0.33160902,4375.2,4374.6,0.298]
[1756905012845,0.03141894,4374.9,4374.6,0.298]
[1756905013050,0.03141894,4374.9,4374.6,0.3026]
[1756905013345,0.33771894,4374.9,4374.6,0.3026]
[1756905013551,0.03141894,4374.9,4374.6,0.3026]
[1756905013750,0.504,4374.8,4374.7,0.1974]
[1756905013950,0.53541894,4374.8,4374.7,0.699]
[1756905014547,0.74331894,4374.8,4374.7,0.699]
[1756905014754,0.74331894,4374.8,4374.7,0.1974]
[1756905014952,0.3063,4374.7,4374.3,0.3026]
[1756905015151,0.4056,4374.2,4373.3,0.24]
[1756905015348,0.7119,4374.2,4373.6,0.3026]
[1756905015552,0.7119,4374.2,4374.1,0.5]
[1756905015960,0.74331894,4374.2,4374.1,0.5]
[1756905016761,0.74331894,4374.2,4373.5,0.1158]
[1756905016762,0.74331894,4374.2,4373.7,0.3026]
[1756905017062,0.3063,4373.7,4373.6,41.1026]
[1756905017358,0.3063,4373.7,4373.6,0.5]
[1756905017359,0.7119,4373.7,4373.6,0.5]
[1756905017750,0.1977,4373.7,4373.6,0.699]
[1756905017952,0.22911894,4373.7,4373.6,0.699]
[1756905018463,0.74331894,4373.7,4373.6,0.699]
[1756905020558,0.03141894,4373.7,4373.6,4.92764]
[1756905020758,0.3063,4374.7,4373.6,4.3964]
[1756905020958,33.6489,4375.2,4375.1,0.1974]
[1756905021361,33.6489,4375.2,4374.8,0.3026]
[1756905021561,0.3063,4374.8,4373.6,0.3026]
[1756905022265,0.1253,4374.5,4373.6,0.3026]
[1756905022459,0.3063,4374.4,4373.6,0.3026]
[1756905023162,0.239,4374.8,4373.8,4.02924193]
[1756905023358,0.239,4374.8,4374.1,0.3026]
[1756905023758,0.3063,4374.9,4374.1,0.3026]
[1756905024461,0.3063,4374.9,4374.3,0.3026]
[1756905025767,33.176,4375.2,4374.3,0.3026]
[1756905026464,33.5816,4375.2,4375.1,0.1974]
[1756905026665,33.8879,4375.2,4375.1,0.5]
[1756905027462,4.02924193,4375.8,4375.1,0.3964]
[1756905027671,0.4316,4376.0,4375.9,0.1974]
[1756905027968,0.7119,4376.0,4375.9,0.699]
[1756905028460,0.7119,4376.0,4375.9,0.1974]
[1756905028666,0.4056,4376.0,4375.5,0.1182]
[1756905028865,0.504,4375.7,4375.6,0.5]
[1756905029067,0.7119,4375.7,4375.6,0.5]
[1756905029669,0.3063,4376.2,4375.6,0.699]
[1756905029856,0.3063,4376.0,4375.7,0.3026]
[1756905030061,0.7119,4376.0,4375.9,0.5]
[1756905030261,0.7119,4376.0,4375.9,0.1974]
[1756905030968,0.7119,4376.0,4375.9,0.5]
[1756905034270,0.7119,4376.0,4375.9,0.699]
[1756905035471,1.24896344,4376.0,4375.9,0.699]
[1756905037464,1.24896344,4376.0,4375.9,0.3964]
[1756905037671,0.7119,4375.7,4375.6,0.5]
[1756905038077,0.1977,4374.6,4374.5,0.8172]
[1756905038466,0.238,4375.2,4374.5,41.3146]
[1756905038775,0.7119,4374.7,4374.1,0.3026]
[1756905039165,0.4056,4374.3,4374.2,41.1026]
[1756905039372,0.7119,4374.3,4374.2,41.1026]
[1756905039570,0.7119,4374.3,4374.2,0.5]
[1756905040270,0.7119,4374.3,4374.2,0.699]
[1756905040668,0.4056,4374.3,4374.2,0.699]
[1756905041173,0.7119,4374.3,4374.2,0.699]
[1756905041571,0.1977,4374.3,4374.2,0.699]
[1756905041766,0.3169,4374.6,4374.3,0.3038]
[1756905041969,0.5231,4374.6,4374.5,0.5024]
[1756905042173,0.7328,4374.6,4374.5,0.7036]
[1756905042675,0.2062,4374.7,4374.6,0.3038]
[1756905042870,0.74416692,4374.7,4374.6,0.7036]
[1756905043173,0.2062,4375.8,4375.7,0.7036]
[1756905043473,0.74401317,4375.8,4375.7,0.7036]
[1756905043669,0.53781317,4375.8,4375.7,0.7036]
[1756905043861,0.5231,4376.7,4376.6,0.1986]
[1756905044467,0.123,4377.5,4376.6,0.3998]
[1756905044671,0.3169,4376.9,4376.6,0.5579]
[1756905045073,0.239,4377.2,4376.6,0.5579]
[1756905045271,0.239,4377.2,4376.6,0.3998]
[1756905046273,0.3169,4377.8,4376.8,0.1581]
[1756905046665,0.3169,4377.8,4376.9,0.22845]
[1756905046861,0.3169,4377.8,4376.7,0.239]
[1756905047065,0.3169,4377.8,4376.4,0.1581]
[1756905047276,0.3169,4377.8,4376.5,0.22846]
[1756905047672,0.3169,4377.9,4376.6,0.22846]
[1756905047874,1.55146001,4378.0,4376.5,0.22846]
[1756905048173,0.54536001,4377.9,4376.5,0.22846]
[1756905048369,0.54536001,4377.9,4376.4,0.1581]
[1756905048574,0.3169,4377.7,4376.5,0.22846]
[1756905048773,1.323,4378.0,4376.4,0.1581]
[1756905048774,0.123,4377.5,4376.4,0.1581]
[1756905049071,0.3169,4377.4,4376.5,0.22846]
[1756905049676,0.3169,4377.4,4376.4,0.1581]
[1756905049976,0.3169,4377.4,4376.5,0.22847]
[1756905050476,0.3169,4377.4,4376.4,0.1581]
[1756905050676,0.3169,4377.4,4376.5,0.22847]
[1756905050974,0.123,4377.5,4376.2,41.039]
[1756905051169,0.3169,4377.4,4376.3,0.22847]
[1756905051568,0.3169,4377.4,4376.2,40.8]
[1756905051877,0.3169,4377.4,4376.2,41.02848]
[1756905052371,0.123,4377.5,4376.2,41.02848]
[1756905052576,0.3169,4377.4,4376.2,41.02848]